[Event "31st MPL National U18 Chess-ch 2022"]
[Site "Pollachi"]
[Date "2022.04.22"]
[Round "9.3"]
[White "John Veny Akkarakaran"]
[Black "Krishnan Ritvik"]
[Result "1/2-1/2"]
[ECO "B90"]
[WhiteElo "1687"]
[BlackElo "1761"]
[Annotator "NA RC COMBH"]
[PlyCount "59"]
[EventDate "2022.04.18"]
[EventCountry "IND"]
[SourceTitle "playchess.com"]
[Source "ChessBase"]
[SourceQuality "1"]
[TimeControl "5400+30"]

1. e4 {[%emt 0:00:07]} c5 {[%emt 0:01:51]} 2. Nf3 {[%emt 0:00:05]} d6 {[%emt 0:00:02]} 3. d4 {[%emt 0:00:06]} cxd4 {[%emt 0:00:01]} 4. Nxd4 {[%emt 0:00:02]} Nf6 {[%emt 0:00:02]} 5. Nc3 {[%emt 0:00:01]} Nc6 {[%emt 0:00:09]} 6. Be2 {[%emt 0:00:11]} e5 {[%emt 0:00:02]} 7. Nf3 {[%emt 0:00:09]} h6 {[%emt 0:00:19]} 8. O-O {[%emt 0:00:09]} Be6 {[%emt 0:00:41]} 9. Re1 {[%emt 0:01:27]} a6 {[%emt 0:04:41]} 10. a4 {[%emt 0:10:58]} Be7 {[%emt 0:09:02]} 11. h3 {[%emt 0:07:28]} Rc8 {[%emt 0:02:27]} 12. b3 {[%emt 0:03:05]} O-O {[%emt 0:15:44]} 13. Bb2 {[%emt 0:06:35]} Qa5 {[%emt 0:04:22]} 14. Nd2 {[%emt 0:16:46]} Nd4 {[%emt 0:18:51]} 15. Bc4 {[%emt 0:01:46]} Rfd8 {[%emt 0:11:54]} 16. Bxe6 {[%emt 0:15:28]} fxe6 {[%emt 0:00:01]} 17. Nc4 {[%emt 0:34:37]} Rxc4 {[%emt 0:02:43]} 18. bxc4 {[%emt 0:00:00]} Qb4 {[%emt 0:00:06]} 19. Rb1 {[%emt 0:00:00]} Qxc4 {[%emt 0:00:14]} 20. Qd3 {[%emt 0:00:00]} Rc8 {[%emt 0:01:37]} 21. Ba1 {[%emt 0:00:00]} b5 {[%emt 0:26:11]} 22. axb5 {[%emt 0:00:00]} axb5 {[%emt 0:00:00]} 23. Nxb5 {[%emt 0:00:00]} Nxc2 {[%emt 0:00:00]} 24. Qxc4 {[%emt 0:00:00]} Rxc4 {[%emt 0:00:00]} 25. Rbc1 {[%emt 0:00:00]} Rc5 {[%emt 0:00:00]} 26. Red1 {[%emt 0:00:00]} Nxe4 {[%emt 0:00:00]} 27. Nc3 {[%emt 0:00:00]} Nd4 {[%emt 0:00:00]} 28. Nxe4 {[%emt 0:03:31]} Rxc1 {[%emt 0:00:00]} 29. Rxc1 {[%emt 0:00:00]} Ne2+ {[%emt 0:00:00]} 30. Kf1 {[%emt 0:00:01]} 1/2-1/2

[Event "31st MPL National U18 Chess-ch 2022"]
[Site "Pollachi"]
[Date "2022.04.22"]
[Round "9.4"]
[White "Avinash Ramesh"]
[Black "Rakshith Srinivasan"]
[Result "1-0"]
[ECO "D03"]
[WhiteElo "2402"]
[BlackElo "1856"]
[Annotator "TA"]
[PlyCount "165"]
[EventDate "2022.04.18"]
[EventCountry "IND"]
[SourceTitle "playchess.com"]
[Source "ChessBase"]
[SourceQuality "1"]
[TimeControl "5400+30"]

{[%evp 13,165,8,48,41,65,62,76,44,69,45,70,47,58,50,45,26,37,31,41,21,17,27,29,0,0,0,0,0,0,0,17,12,38,47,46,0,40,47,50,58,53,58,89,101,105,45,45,45,45,45,42,45,43,39,50,30,32,17,102,114,114,100,100,118,92,50,62,85,58,0,0,0,76,1,218,2,40,0,0,0,0,0,0,0,312,0,0,0,0,0,0,0,0,0,421,424,383,345,469,309,1316,1379,1035,1197,1002,969,1623,1582,2048,1721,29974,6019,6603,6490,2463,2066,29972,29973,29976,29971,29972,29973,29971,2661,1814,1736,29971,29973,29978,29979,29978,29980,29980,29981,29982,29982,29982,29983,29983,29984,29987,29988,29988,29987,29987,29988,29988,29988,29989,29987,29989,29988,29990,423]} 1. d4 {[%emt 0:00:30]} Nf6 {[%emt 0:00:03]} 2. Nf3 {[%emt 0:00:10]} g6 {[%emt 0:00:13]} 3. Bg5 {[%emt 0:00:06]} Bg7 {[%emt 0:00:13]} 4. Nbd2 {[%emt 0:00:10]} O-O {[%emt 0:00:32]} 5. c3 {[%emt 0:00:07]} d5 {[%emt 0:01:28]} 6. e3 {[%emt 0:00:14]} c5 {[%emt 0:01:38]} 7. Be2 {[%emt 0:00:25]} Nc6 {[%emt 0:01:29]} 8. dxc5 {[%emt 0:03:46] D03: 1 d4 d5 2 Nf3 Nf6 3 Bg5, including Torre Attack with early ...d5.} a5 {[%emt 0:02:17]} 9. a4 {[%emt 0:03:42]} e5 {[%emt 0:03:33]} 10. O-O {[%emt 0:04:21][%cal Oe3e4] White is better.} Qe7 {[%emt 0:03:04] [#]} 11. Nb3 $146 {[%emt 0:02:37][%cal Oe3e4]} ({Predecessor:} 11. Bb5 e4 12. Nd4 Qxc5 13. N2b3 Qb6 14. Bf4 Rd8 15. h3 Nh5 16. Bh2 Be5 17. Nd2 Bxh2+ 18. Kxh2 {0-1 (41) Peric,S (2370)-Markovic,M (2540) Niksic 1997}) 11... Be6 {[%emt 0:02:17]} 12. Nfd2 {[%emt 0:10:50][%cal Oe3e4]} h6 {[%emt 0:10:14]} 13. Bxf6 {[%emt 0:08:10]} Bxf6 {[%emt 0:02:09]} 14. Bg4 {[%emt 0:00:31]} Bxg4 {[%emt 0:07:52]} 15. Qxg4 {[%emt 0:00:25]} e4 {[%emt 0:00:23]} 16. Rfd1 {[%emt 0:22:59]} Ne5 {[%emt 0:03:08]} 17. Qe2 {[%emt 0:00:02]} Nd3 {[%emt 0:10:14]} 18. Nf1 {[%emt 0:03:32]} (18. Nf3 {with more complications.} Nxb2 19. Qxb2 exf3 20. gxf3 Qe5 21. Nd4) 18... Rfd8 {[%emt 0:02:29]} 19. Rxd3 {[%emt 0:15:07]} exd3 {[%emt 0:00:05]} 20. Qxd3 {[%emt 0:00:04]} Qc7 {[%emt 0:05:40]} 21. Qb5 {[%emt 0:01:53]} Be7 {[%emt 0:00:49]} 22. Nfd2 {[%emt 0:03:10]} Qd7 {[%emt 0:09:44]} 23. Qxd7 {[%emt 0:03:48]} Rxd7 {[%emt 0:00:03]} 24. Rd1 {[%emt 0:00:12]} (24. Nf3 $14) 24... Rc7 {[%emt 0:05:54]} 25. Nf3 {[%emt 0:00:31]} Bxc5 {[%emt 0:04:09]} 26. Rxd5 {[%emt 0:00:23]} b6 {[%emt 0:00:03]} 27. Kf1 {[%emt 0:00:31]} ({Much worse is} 27. Nxc5 Rxc5 28. Rxc5 bxc5 $15) 27... Be7 {[%emt 0:04:06]} 28. Nfd2 {[%emt 0:00:35]} Rd8 {[%emt 0:02:42]} 29. Rxd8+ {[%emt 0:00:04]} ({White should play} 29. Rb5 $1 $16) 29... Bxd8 $16 {[%emt 0:00:04][%mdl 4096] Endgame KRB-KNN} 30. Ke2 {[%emt 0:00:09]} f5 {[%emt 0:05:10]} 31. Kd3 {[%emt 0:00:19]} Kf7 {[%emt 0:02:38]} 32. Nc4 {[%emt 0:02:48]} Kf6 {[%emt 0:02:39]} 33. Nd4 {[%emt 0:02:15]} Rd7 {[%emt 0:00:08]} 34. Kc2 {[%emt 0:00:58]} g5 {[%emt 0:00:34]} 35. f4 {[%emt 0:00:58]} gxf4 {[%emt 0:02:21]} (35... Bc7 $11) 36. exf4 {[%emt 0:00:06]} h5 {[%emt 0:04:40]} 37. Ne3 {[%emt 0:01:33] &Bianco is more active.} Kg6 {[%emt 0:00:32]} 38. g3 {[%emt 0:02:30]} ({Worse is} 38. Ndxf5 Rf7 39. Kd2 Rxf5 40. Nxf5 Kxf5 $15) 38... Rf7 {[%emt 0:00:05]} 39. Nf3 {[%emt 0:00:27] Strongly threatening Ne5+.} Bf6 {[%emt 0:00:39][%cal Oh5h4]} 40. Nd5 {[%emt 0:00:18]} Rb7 {[%emt 0:00:08]} 41. c4 {[%emt 0:03:24]} ({Better is} 41. b4 $1 $14) 41... Kf7 $11 {[%emt 0:00:51]} 42. b3 {[%emt 0:01:31]} Ke6 {[%emt 0:00:36]} (42... Rb8 $11) 43. Kd3 {[%emt 0:00:30]} (43. Ng5+ $1 $16 Bxg5 44. fxg5) 43... Rd7 $2 {[%emt 0:01:13]} (43... Kf7 $1 $11 {and Black is okay.}) 44. Ke2 $2 {[%emt 0:00:07]} (44. Ng5+ $1 $18 Bxg5 45. fxg5) 44... Rd6 {[%emt 0:00:38]} 45. Ne1 {[%emt 0:01:26]} h4 {[%emt 0:01:38]} 46. Nc2 {[%emt 0:00:26]} hxg3 {[%emt 0:00:34]} 47. hxg3 {[%emt 0:00:01]} Bb2 {[%emt 0:00:55]} 48. Nce3 {[%emt 0:00:49]} Rc6 $2 {[%emt 0:00:45][%mdl 8192] [#]} (48... Rd7 $11) 49. Kd3 $2 {[%emt 0:01:19]} ({White must play} 49. Nxf5 $1 $18 {[%cal Oe2d3][%mdl 512] And now Kd3! would win.} Kf7 (49... Rc8 50. g4) 50. Kf3) 49... Ba3 {[%emt 0:00:11]} 50. g4 {[%emt 0:00:06]} fxg4 {[%emt 0:00:31]} 51. Nxg4 {[%emt 0:00:20]} Bc5 {[%emt 0:00:35]} 52. Ke4 {[%emt 0:00:13] aiming for f5+.} Rc8 {[%emt 0:00:29]} 53. f5+ {[%emt 0:00:31][%cal Bf4f5,Bf5f6,Bf6f7][%mdl 32]} Kf7 $2 {[%emt 0:00:09][%mdl 8192] Black is on the road to losing.} (53... Kd6 $11) 54. Ne5+ $18 {[%emt 0:00:06]} Kg7 {[%emt 0:00:27]} 55. f6+ {[%emt 0:00:06]} Kh7 {[%emt 0:00:39]} 56. Kf5 {[%emt 0:00:21]} Bd4 $2 {[%emt 0:00:24]} (56... Rd8 57. Nf7 Rf8) 57. Nf3 {[%emt 0:00:28] Pair of Knights!} Bc5 {[%emt 0:00:15]} 58. Ng5+ {[%emt 0:00:52]} Kh6 {[%emt 0:01:23]} 59. Ne6 {[%emt 0:00:33] f7 is the strong threat.} Rg8 {[%emt 0:01:05]} 60. f7 {[%emt 0:00:15]} Rg1 {[%emt 0:00:27]} 61. Nxc5 {[%emt 0:00:21]} Rf1+ {[%emt 0:00:28]} 62. Nf4 {[%emt 0:00:15]} (62. Ke6 $142 Kg7 63. Nd7 Rxf7 64. N7xb6 Kf8 65. Nd7+ Kg7 66. c5 Rf2 67. c6) 62... Kg7 {[%emt 0:00:02]} 63. Nd7 {[%emt 0:00:35]} Kxf7 {[%emt 0:00:04]} 64. Nxb6 {[%emt 0:00:03]} Rf3 {[%emt 0:00:11]} 65. Ke5 {[%emt 0:00:10]} Rxb3 {[%emt 0:00:06]} 66. Nfd5 {[%emt 0:00:04]} Rh3 {[%emt 0:00:38]} 67. c5 {[%emt 0:07:52][%cal Bc4c5,Bc5c6][%mdl 32]} Rh6 {[%emt 0:00:05]} 68. Kd4 {[%emt 0:00:00] Kc4 would kill now.} Rh4+ {[%emt 0:00:23]} 69. Kc3 {[%emt 0:00:00] Intending c6 and mate.} Rh1 {[%emt 0:00:05]} 70. Kc4 {[%emt 0:00:00] White mates.} Ke6 {[%emt 0:00:22]} 71. c6 {[%emt 0:00:00]} Kd6 {[%emt 0:00:03]} 72. c7 {[%emt 0:00:00]} Rc1+ {[%emt 0:00:06]} 73. Kb5 {[%emt 0:00:00]} Rc5+ {[%emt 0:01:19]} 74. Ka6 {[%emt 0:00:00]} Rxc7 {[%emt 0:00:27]} 75. Nxc7 {[%emt 0:00:00]} Kxc7 {[%emt 0:00:05]} 76. Kxa5 {[%emt 0:00:00]} Kb7 {[%emt 0:00:03]} 77. Kb5 {[%emt 0:00:00]} Ka7 {[%emt 0:00:05]} 78. Nd7 {[%emt 0:00:00]} Kb7 {[%emt 0:00:03]} 79. Nc5+ {[%emt 0:00:00]} Ka7 {[%emt 0:00:04]} 80. Kc6 {[%emt 0:00:00]} Ka8 {[%emt 0:00:03]} 81. Kb6 {[%emt 0:00:00]} Kb8 {[%emt 0:06:24]} 82. Ne6 {[%emt 0:00:00]} Ka8 {[%emt 0:00:00]} 83. Nc7+ {[%emt 0:00:00] Weighted Error Value: White=0.30/Black=0.47} (83. a5 $142 Kb8 84. a6 Kc8 85. a7 Kd7 86. Nc5+ Ke8 87. a8=Q+ Kf7 88. Qf3+ Kg7 89. Ne6+ Kg6 90. Qf4 Kh7 91. Qf6 Kg8 92. Qg7#) 1-0

[Event "31st MPL National U18 Chess-ch 2022"]
[Site "Pollachi"]
[Date "2022.04.22"]
[Round "9.5"]
[White "Harshad S"]
[Black "Jani Kushal R"]
[Result "1-0"]
[ECO "B53"]
[WhiteElo "2328"]
[BlackElo "1746"]
[Annotator "TA"]
[PlyCount "113"]
[EventDate "2022.04.18"]
[EventCountry "IND"]
[SourceTitle "playchess.com"]
[Source "ChessBase"]
[SourceQuality "1"]
[TimeControl "5400+30"]

{[%evp 9,113,8,0,6,15,0,14,-17,26,17,29,7,47,0,14,3,19,9,40,28,41,35,88,78,80,64,100,80,82,37,44,41,45,43,32,23,25,28,152,161,166,149,322,320,324,312,321,310,314,290,292,356,420,368,352,193,185,186,183,172,166,148,175,175,171,166,169,170,152,53,44,39,39,28,88,83,176,179,179,170,197,160,360,349,570,561,527,458,29977,29978,29978,29979,29979,29980,29980,29981,29981,29982,29982,29983,29985,29983,29989,29990,29990,29991]} 1. e4 {[%emt 0:00:33]} c5 {[%emt 0:00:13]} 2. Nf3 {[%emt 0:00:19]} d6 {[%emt 0:00:09]} 3. d4 {[%emt 0:00:31]} cxd4 {[%emt 0:00:24]} 4. Qxd4 {[%emt 0:00:25]} Nf6 {[%emt 0:00:36]} 5. Be2 {[%emt 0:01:35]} g6 {[%emt 0:06:29]} 6. O-O {[%emt 0:03:50] B53: Sicilian: 2...d6: Lines with Qxd4.} Bg7 {[%emt 0:00:53]} 7. c4 {[%emt 0:02:43]} O-O {[%emt 0:02:17]} 8. Qe3 {[%emt 0:03:29] The position is equal.} b6 {[%emt 0:04:53]} 9. Rd1 {[%emt 0:05:03]} Bb7 {[%emt 0:01:20]} (9... Ng4 {feels hotter.} 10. Qg5 Nc6 11. Nc3 Bd7) 10. Nc3 {[%emt 0:00:39]} Nbd7 {[%emt 0:04:26]} (10... Ng4 $5 {[%cal Rg4e3]} 11. Qg5 Ne5 $11) 11. h3 {[%emt 0:01:53] [#]} (11. Nd4 $14 {might be stronger.}) 11... Qc7 $146 {[%emt 0:09:15]} ({Predecessor:} 11... Nc5 12. e5 Nfe4 13. Nxe4 Nxe4 14. Qa3 Qc8 15. Be3 Rd8 16. Rac1 Qe6 17. exd6 Rxd6 {½-½ (103) Nihal,S (2618)-Grandelius,N (2673) Wijk aan Zee 2020}) 12. Rb1 {[%emt 0:08:02]} Nc5 {[%emt 0:07:09][%cal Rf6e4]} 13. Nd2 {[%emt 0:03:51]} e5 {[%emt 0:09:27]} 14. b4 {[%emt 0:17:20]} Ne6 {[%emt 0:00:22]} 15. Nb3 {[%emt 0:00:55]} a6 {[%emt 0:08:39] Against Nb5} ({Black should try} 15... Ba6 $14) 16. Bb2 {[%emt 0:07:10]} Qe7 {[%emt 0:07:24]} 17. Bf1 {[%emt 0:06:58]} (17. Qxb6 $6 Nxe4 18. Bf1 Nf4 $11) 17... a5 {[%emt 0:02:58]} 18. bxa5 {[%emt 0:04:17]} bxa5 {[%emt 0:00:32]} 19. a4 {[%emt 0:00:27]} Rfd8 {[%emt 0:06:32]} 20. Nd5 {[%emt 0:02:28]} Qe8 {[%emt 0:00:48]} 21. Bc3 {[%emt 0:01:16]} Bc6 $1 {[%emt 0:04:21]} 22. Bxa5 {[%emt 0:05:48]} Rdb8 {[%emt 0:01:03][%cal Ob8b3]} 23. Nb6 $36 {[%emt 0:02:36][%mdl 2048] White fights for an advantage.} Bxa4 {[%emt 0:01:56]} (23... Ra7 $1 $11) 24. Nxa8 $16 {[%emt 0:03:02] &Bianco is more active.} Rxa8 {[%emt 0:00:39]} 25. Bb4 {[%emt 0:03:49]} Nd4 $2 {[%emt 0:01:24]} (25... Bxb3 $16 {was necessary.} 26. Rxb3 (26. Qxb3 Nd4 $16) 26... Nd4) 26. Nxd4 $18 {[%emt 0:01:54]} Bxd1 {[%emt 0:00:13]} 27. Nb5 {[%emt 0:03:15]} (27. Rxd1 exd4 28. Rxd4 Nd7 $16) 27... Bc2 {[%emt 0:00:52]} 28. Rb2 {[%emt 0:00:36]} ({Weaker is} 28. Nxd6 Qc6 29. Rc1 Rb8 $16) 28... Bxe4 {[%emt 0:02:32]} 29. Nc7 {[%emt 0:00:12]} ({Not} 29. Nxd6 Qc6 $16) 29... Qb8 {[%emt 0:03:23]} 30. Nxa8 {[%emt 0:01:05]} Bxa8 {[%emt 0:00:06]} 31. Qa3 {[%emt 0:00:35]} Bf8 {[%emt 0:00:43] [#]} 32. Bxd6 $1 {[%emt 0:02:01][%mdl 512]} Qxd6 {[%emt 0:00:10]} 33. Qxa8 {[%emt 0:00:02]} Kg7 {[%emt 0:00:34]} 34. Qa5 {[%emt 0:00:40]} Ne4 {[%emt 0:02:21]} 35. Qa7 {[%emt 0:03:04]} Qc6 {[%emt 0:03:27]} 36. Qe3 {[%emt 0:02:55] Hoping for Qf3.} Bc5 {[%emt 0:00:48] [#]} 37. Qf3 {[%emt 0:00:06] Bd3 is the strong threat.} Bd4 {[%emt 0:02:31]} 38. Rc2 {[%emt 0:00:18]} Qb7 {[%emt 0:00:33]} 39. Bd3 {[%emt 0:02:00]} (39. g4 $16) 39... Qb1+ $14 {[%emt 0:00:25]} 40. Kh2 {[%emt 0:00:05]} Nc5 {[%emt 0:00:39]} 41. Rd2 {[%emt 0:01:14]} Qb8 {[%emt 0:02:20]} (41... Qe1 $11 42. Re2 Qf1) 42. g3 $16 {[%emt 0:00:37] Black is on the road to losing.} Qb6 {[%emt 0:00:28]} (42... f5 $16 {was worth a try.}) 43. Be4 $18 {[%emt 0:01:06]} f5 {[%emt 0:00:30]} 44. Bd5 {[%emt 0:00:20]} e4 {[%emt 0:02:07]} 45. Qe2 {[%emt 0:00:35]} Nd3 $2 {[%emt 0:01:33] [#]} (45... Qf6 $16 46. f3 e3) 46. Bxe4 $1 {[%emt 0:00:41]} Nxf2 {[%emt 0:01:33]} (46... fxe4 47. Qxe4 Ne5 48. Rxd4 (48. Qxd4 $2 Qxd4 49. Rxd4 Nf3+ 50. Kg2 Nxd4 $19) 48... Nf3+ 49. Qxf3 Qxd4) 47. Bf3 {[%emt 0:00:40] Threatens to win with Qe7+.} Qf6 {[%emt 0:01:01] Against Qe7+} 48. Kg2 {[%emt 0:00:22]} f4 {[%emt 0:00:41] [#]} (48... Kh6 $18 49. Bd5 Kg7 50. Rxd4 Qxd4 51. Qxf2 Qe5 52. Qa7+ Kh8 53. Qa8+ Kg7 54. Qg8+ Kh6 55. Qf8+ Qg7 56. Qxg7+ Kxg7) 49. Rxd4 $1 {[%emt 0:00:55][%mdl 512] White mates.} Qxd4 {[%emt 0:00:13]} 50. Qe7+ {[%emt 0:00:22]} Kh6 {[%emt 0:00:24]} 51. Qf8+ {[%emt 0:00:11]} Qg7 {[%emt 0:00:13]} 52. Qxf4+ {[%emt 0:00:09]} g5 {[%emt 0:00:04]} 53. Qd6+ {[%emt 0:00:04]} Qg6 {[%emt 0:00:01]} 54. Qxg6+ {[%emt 0:00:08]} hxg6 {[%emt 0:00:15]} 55. Kxf2 {[%emt 0:00:01]} g4 {[%emt 0:00:09]} 56. Bxg4 {[%emt 0:00:03]} Kg5 {[%emt 0:00:05]} 57. c5 {[%emt 0:00:03] Weighted Error Value: White=0.13 (very precise) /Black=0.44} 1-0

[Event "31st MPL National U18 Chess-ch 2022"]
[Site "Pollachi"]
[Date "2022.04.22"]
[Round "9.6"]
[White "Apoorv Kamble"]
[Black "Manish Anto Cristiano F"]
[Result "1-0"]
[ECO "C07"]
[WhiteElo "1679"]
[BlackElo "2236"]
[Annotator "TA"]
[PlyCount "87"]
[EventDate "2022.04.18"]
[EventCountry "IND"]
[SourceTitle "playchess.com"]
[Source "ChessBase"]
[SourceQuality "1"]
[TimeControl "5400+30"]

{[%evp 9,87,8,6,13,13,13,13,0,13,5,8,11,16,7,19,-4,10,0,0,-23,4,-23,-14,-27,-31,-41,0,0,0,-25,0,-108,0,0,64,54,68,71,47,35,97,112,212,153,150,150,410,411,710,711,706,670,677,699,692,677,769,767,747,741,804,793,819,693,905,903,891,880,1560,1502,1877,1214,1246,1236,5094,2286,5406,3017,5397,4816]} 1. e4 {[%emt 0:00:03]} e6 {[%emt 0:00:07]} 2. d4 {[%emt 0:00:04]} d5 {[%emt 0:00:17]} 3. Nd2 {[%emt 0:00:57]} c5 {[%emt 0:00:09]} 4. exd5 {[%emt 0:00:08]} Qxd5 {[%emt 0:00:08]} 5. dxc5 {[%emt 0:00:09]} Nf6 {[%emt 0:00:08]} 6. Ngf3 {[%emt 0:00:05] C07: French Tarrasch: 3...c5, 4 Ngf3 and 4 exd5 Qxd5.} Qxc5 {[%emt 0:00:23]} 7. Bd3 {[%emt 0:01:03]} Nbd7 {[%emt 0:00:09]} 8. O-O {[%emt 1:32:01] The position is equal.} Be7 {[%emt 0:00:08]} 9. Re1 {[%emt 0:00:00]} O-O {[%emt 0:00:37]} ({Don't do} 9... Ng4 10. Ne4 Qc7 11. h3 $16) 10. Ne4 {[%emt 0:00:00]} Qc7 {[%emt 0:01:50]} 11. Bg5 {[%emt 0:00:00]} b6 {[%emt 0:08:20]} 12. Nxf6+ {[%emt 0:00:00]} Nxf6 {[%emt 0:00:46] [#]} 13. Ne5 $146 {[%emt 0:00:00]} ({Predecessor:} 13. Qd2 Bb7 14. Bf4 Qd7 15. Ne5 Qd5 16. Nf3 Qc6 17. Qe2 Rac8 18. c3 {1-0 (29) He,A-Spirin,A Maribor 2012}) 13... Bb7 {[%emt 0:00:56]} 14. Bf4 {[%emt 0:00:00][%cal Oe5g6]} Qc5 {[%emt 1:23:32]} 15. Bg3 {[%emt 0:00:00]} Rad8 {[%emt 0:00:00][%cal Of6e4]} 16. Qe2 {[%emt 0:00:00]} g6 {[%emt 0:00:00]} 17. Rad1 {[%emt 0:00:00]} Qd5 {[%emt 0:00:00][%csl Gb7][%cal Rd5g2]} 18. Qf1 {[%emt 0:00:00][%cal Od3g6]} Qc5 {[%emt 0:00:00]} (18... Qxa2 $2 19. Ra1 Qd5 20. Rxa7 $18) 19. Bh4 {[%emt 0:00:00]} Qb4 {[%emt 0:00:00]} (19... Nd7 $5 {[%cal Re7h4]} 20. Bxe7 Qxe7 $15) 20. Bg5 {[%emt 0:06:00]} (20. Nc4 $11) 20... Kg7 {[%emt 0:00:00]} (20... Qxb2 $17 21. h3 Qc3) 21. Bc1 $11 {[%emt 0:00:00]} h5 {[%emt 0:00:00]} (21... Qc5 $11) 22. a3 $14 {[%emt 0:07:00]} Qc5 {[%emt 0:00:00]} 23. b4 $1 {[%emt 0:00:00]} Qc7 {[%emt 0:00:00]} 24. Bb2 {[%emt 0:00:00] Black must now prevent Qe2.} (24. Qe2 $5 {[%cal Rc1b2]}) 24... Kg8 {[%emt 0:00:00]} (24... a5 $14) 25. Qe2 $1 $16 {[%emt 0:00:00][%cal Oe5g6] Hoping for Nxg6!} Bc8 {[%emt 0:00:00]} (25... Rd6 $16 {keeps fighting.}) 26. Qe3 {[%emt 0:00:00] aiming for Qh6.} Nd5 {[%emt 0:00:00] [#]} 27. Qg3 $36 {[%emt 0:00:00][%cal Od3g6][%mdl 2048] Strongly threatening Bxg6! White is on the roll. &Bianco is more active.} Bf6 $2 {[%emt 0:06:30] This move loses the game for Black.} (27... h4 $16 28. Qf3 Bg5) 28. c4 $18 {[%emt 0:00:00]} Ne7 {[%emt 0:00:00] [#]} (28... h4 $142 29. Qf3 Bg7 30. cxd5 Rxd5) 29. Ng4 $1 {[%emt 0:00:00][%mdl 512] White is clearly winning.} Bxb2 {[%emt 0:00:00]} 30. Qxc7 {[%emt 0:00:00]} Rd7 {[%emt 0:00:00]} 31. Nh6+ {[%emt 0:00:00]} Kg7 {[%emt 0:00:00]} 32. Qf4 {[%emt 0:00:00]} Bf6 {[%emt 0:00:00]} 33. Bc2 {[%emt 0:00:00]} e5 {[%emt 0:00:00]} 34. Qe3 {[%emt 0:00:00]} Rxd1 {[%emt 0:00:00]} 35. Rxd1 {[%emt 0:00:00]} Rh8 {[%emt 0:00:00]} 36. c5 {[%emt 0:07:00]} bxc5 {[%emt 0:00:00] [#]} 37. Nxf7 $1 {[%emt 0:00:00]} Kxf7 {[%emt 0:00:00]} 38. Bb3+ {[%emt 0:00:00]} Be6 {[%emt 0:00:00]} 39. Bxe6+ {[%emt 0:00:00]} Kxe6 {[%emt 0:00:00]} 40. Qxc5 {[%emt 0:00:00] Qc4+ is the strong threat.} Rc8 {[%emt 0:00:00]} 41. Qxa7 {[%emt 0:00:00]} Rc2 {[%emt 0:00:00]} 42. Qe3 {[%emt 0:00:00] White threatens Qb3+ and mate.} Rb2 {[%emt 0:00:00] Prevents Qb3+.} 43. Qc3 {[%emt 0:00:00]} e4 {[%emt 0:00:00] [#]} 44. Rd6+ $1 {[%emt 0:00:00][%mdl 512] Weighted Error Value: White=0.17 (very precise) /Black=0.33} 1-0